bitfinex-derivatives/quotes_SOLF0:USTF0_20250323
["timestamp","ask_amount","ask_price","bid_price","bid_amount"]
[1742746465001,0.04876907,132.5,132.48,17.22023048]
[1742746465496,7.59726907,132.5,132.48,17.22023048]
[1742746465702,0.04876907,132.5,132.48,17.22023048]
[1742746465897,0.04876907,132.5,132.49,7.549]
[1742746466506,0.04876907,132.5,132.48,17.22033048]
[1742746466900,7.59726907,132.5,132.48,17.22033048]
[1742746467195,7.59726907,132.5,132.48,9.67103048]
[1742746467397,0.04876907,132.5,132.48,9.67103048]
[1742746467602,0.04876907,132.5,132.48,17.22023048]
[1742746468500,7.59746907,132.5,132.48,17.22023048]
[1742746469003,0.04876907,132.5,132.48,17.22023048]
[1742746470206,7.59726907,132.5,132.48,17.22023048]
[1742746471600,0.04876907,132.5,132.48,17.22023048]
[1742746472206,7.59736907,132.5,132.48,9.67103048]
[1742746472806,7.549,132.49,132.47,44.2344777]
[1742746473813,7.5496,132.48,132.47,27.01354722]
[1742746475003,7.5496,132.48,132.47,0.05354722]
[1742746478914,7.5496,132.48,132.47,9.7245777]
[1742746480209,7.5496,132.48,132.47,0.05354722]
[1742746480811,7.5496,132.48,132.47,9.7245777]
[1742746481502,7.5494,132.49,132.47,9.7245777]
[1742746481707,0.04876907,132.5,132.48,9.67103048]
[1742746481912,0.04876907,132.5,132.47,7.60334722]
[1742746481913,0.04876907,132.5,132.47,17.2743777]
[1742746482110,7.5493,132.49,132.47,17.2743777]
[1742746484116,0.04876907,132.5,132.48,36.61103048]
[1742746484313,0.04876907,132.5,132.49,9.67103048]
[1742746485411,0.04876907,132.5,132.49,17.22003048]
[1742746487110,0.04876907,132.5,132.49,9.67103048]
[1742746489020,0.04876907,132.5,132.48,26.94]
[1742746489922,7.549,132.49,132.48,26.94]
[1742746490735,7.549,132.49,132.48,36.61103048]
[1742746492037,7.59756907,132.5,132.48,36.61103048]
[1742746492237,0.04876907,132.5,132.49,9.67103048]
[1742746493240,0.04876907,132.5,132.48,36.61103048]
[1742746493737,0.04876907,132.5,132.48,44.16033048]
[1742746493938,7.59736907,132.5,132.48,44.16033048]
[1742746494243,0.04876907,132.5,132.49,17.22003048]
[1742746494839,56.92350424,132.63,132.49,9.67103048]
[1742746495039,9.67103048,132.58,132.5,249.06]
[1742746495339,366.5454,132.56,132.54,9.67103048]
[1742746495533,368.67103048,132.6,132.55,9.67103048]
[1742746495739,359.0,132.6,132.56,9.67103048]
[1742746496041,0.0574334,132.59,132.57,0.05084182]
[1742746496239,17.21493048,132.58,132.57,0.05084182]
[1742746496430,36.61103048,132.58,132.52,26.94]
[1742746496635,7.5466,132.54,132.51,9.67103048]
[1742746496834,9.67103048,132.55,132.51,9.67103048]
[1742746497241,7.5469,132.53,132.51,9.67103048]
[1742746497541,0.05128387,132.53,132.51,0.05324186]
[1742746497730,0.05128387,132.53,132.51,9.72427234]
[1742746499143,7.5473,132.52,132.51,9.72427234]
[1742746500745,7.5473,132.52,132.51,0.05324186]
[1742746501642,0.05128387,132.53,132.51,9.72427234]
[1742746501842,0.05128387,132.53,132.52,9.67103048]
[1742746502538,0.05128387,132.53,132.52,17.21833048]
[1742746503246,7.5453,132.56,132.53,7.5467]
[1742746503445,7.5453,132.56,132.55,9.67103048]
[1742746504441,7.5453,132.56,132.54,9.71953974]
[1742746504744,7.5456,132.55,132.54,9.71953974]
[1742746505242,7.5453,132.56,132.54,9.71953974]
[1742746505437,7.5453,132.56,132.55,9.67103048]
[1742746505645,0.05166641,132.57,132.55,9.67103048]
[1742746505842,0.05166641,132.57,132.56,44.15613048]
[1742746506737,359.0,132.63,132.56,285.59103048]
[1742746506941,359.0,132.63,132.6,9.67103048]
[1742746507242,7.542,132.62,132.6,9.67103048]
[1742746507748,9.72765416,132.62,132.6,0.05203615]
[1742746508242,9.67103048,132.61,132.6,0.05203615]
[1742746508439,17.21323048,132.61,132.6,0.05203615]
[1742746509343,7.5445,132.57,132.56,248.98]
[1742746510044,9.67103048,132.58,132.56,248.98]
[1742746510045,7.5442,132.58,132.56,248.98]
[1742746510247,9.67103048,132.59,132.56,258.65103048]
[1742746510449,0.05523925,132.59,132.56,266.24789763]
[1742746510646,7.59893925,132.59,132.56,266.24789763]
[1742746510844,0.05523925,132.59,132.56,266.24789763]
[1742746511147,7.5439,132.58,132.56,249.03216715]
[1742746511338,0.05523925,132.59,132.56,249.03216715]
[1742746511539,9.72626973,132.59,132.56,249.03216715]
[1742746511748,7.5444,132.58,132.56,249.03216715]
[1742746512048,0.05523925,132.59,132.57,9.67103048]
[1742746512448,0.05523925,132.59,132.58,9.67103048]
[1742746513448,0.05523925,132.59,132.57,9.67103048]
[1742746513849,7.59893925,132.59,132.57,9.67103048]
[1742746514048,0.05523925,132.59,132.57,9.67103048]
[1742746514450,0.05523925,132.59,132.58,17.21493048]
[1742746516652,0.05523925,132.59,132.57,9.67103048]
[1742746517551,0.05523925,132.59,132.57,17.21523048]
[1742746518852,0.05523925,132.59,132.58,9.67103048]
[1742746519154,0.05523925,132.59,132.58,17.21493048]
[1742746519552,0.05523925,132.59,132.58,9.67103048]
[1742746519849,0.05523925,132.59,132.56,275.95216715]
[1742746519850,0.05523925,132.59,132.57,26.92]
[1742746520355,0.05523925,132.59,132.56,249.03216715]
[1742746520549,0.05523925,132.59,132.56,285.62319763]
[1742746521155,0.05523925,132.59,132.57,7.5445]
[1742746521855,7.59863925,132.59,132.57,7.5445]
[1742746522250,7.59863925,132.59,132.56,293.16799763]
[1742746522447,7.59863925,132.59,132.56,285.62319763]
[1742746522653,7.59863925,132.59,132.56,283.49686715]
[1742746522946,7.544,132.58,132.56,283.49686715]
[1742746523150,0.05523925,132.59,132.56,293.16789763]
[1742746523450,7.59903925,132.59,132.56,293.16789763]
[1742746523651,7.59903925,132.59,132.57,7.5445]
[1742746524747,0.05523925,132.59,132.57,17.21553048]
[1742746525258,0.05523925,132.59,132.58,7.5439]
[1742746526756,0.05523925,132.59,132.57,17.21523048]
[1742746527156,0.05523925,132.59,132.57,9.67103048]
[1742746527656,0.05523925,132.59,132.58,7.5439]
[1742746527859,0.05523925,132.59,132.58,17.21493048]
[1742746529257,0.05523925,132.59,132.57,9.67103048]
[1742746529558,7.59893925,132.59,132.57,9.67103048]
[1742746529956,7.59893925,132.59,132.57,17.21553048]
[1742746530150,7.59893925,132.59,132.57,7.5445]
[1742746530553,7.5439,132.58,132.56,293.16809763]
[1742746530752,7.5439,132.58,132.57,9.67103048]
[1742746532263,7.5445,132.57,132.56,258.70319763]
[1742746532464,7.5445,132.57,132.56,249.03216715]
[1742746532754,7.5445,132.57,132.56,0.05216715]
[1742746540565,17.21553048,132.57,132.56,0.05216715]
[1742746543866,7.5473,132.52,132.51,285.47103048]
[1742746544368,7.5473,132.52,132.51,258.55103048]
[1742746544668,7.5473,132.52,132.51,285.47103048]
[1742746544961,7.5473,132.52,132.51,258.55103048]
[1742746546065,7.5473,132.52,132.51,285.47103048]
[1742746546267,7.5473,132.52,132.51,275.8]
[1742746547065,7.5473,132.52,132.51,248.88]
[1742746547268,7.5479,132.51,132.5,0.05462026]
[1742746549566,17.21893048,132.51,132.5,0.05462026]
[1742746550369,7.5502,132.47,132.46,248.92]
[1742746550568,9.67103048,132.49,132.45,9.67103048]
[1742746551263,9.67103048,132.47,132.43,9.67103048]
[1742746551469,9.67103048,132.47,132.43,36.59103048]
[1742746551676,0.05284876,132.46,132.44,0.0497257]
[1742746552573,7.60394876,132.46,132.44,0.0497257]
[1742746552770,0.05284876,132.46,132.44,0.0497257]
[1742746553074,7.60394876,132.46,132.44,0.0497257]
[1742746554274,7.60394876,132.46,132.44,7.6016257]
[1742746554672,7.60394876,132.46,132.44,0.0497257]
[1742746555562,7.5513,132.45,132.44,0.0497257]
[1742746556466,17.22233048,132.45,132.44,0.0497257]
[1742746557674,17.27497924,132.46,132.44,0.0497257]
[1742746558170,7.5513,132.45,132.44,0.0497257]
[1742746559071,17.27497924,132.46,132.44,0.0497257]
[1742746559876,9.72387924,132.46,132.44,0.0497257]
[1742746561080,0.05284876,132.46,132.45,9.67103048]
[1742746561280,0.05284876,132.46,132.44,9.72075618]
[1742746561471,9.67103048,132.45,132.44,0.0497257]
[1742746561779,9.67103048,132.45,132.41,2.67877]
[1742746561980,9.67103048,132.42,132.41,2.67877]
[1742746562184,17.22403048,132.42,132.41,2.67877]
[1742746562377,17.22403048,132.42,132.41,7e-05]
[1742746563077,7.553,132.42,132.41,7e-05]
[1742746563778,17.22403048,132.42,132.41,7e-05]
[1742746565680,17.22403048,132.42,132.34,31.1225]
[1742746565681,7.5548,132.39,132.35,9.67103048]
[1742746565983,9.67103048,132.39,132.35,17.22783048]
[1742746566183,7.555,132.39,132.35,17.22783048]
[1742746566484,7.555,132.39,132.35,44.16783048]
[1742746566784,0.05033133,132.38,132.36,0.0483379]
[1742746567179,0.05033133,132.38,132.37,9.67103048]
[1742746567381,359.0,132.42,132.37,9.67103048]
[1742746567582,359.0,132.42,132.4,9.67103048]
[1742746567783,359.0,132.42,132.4,17.22483048]
[1742746568086,359.0,132.42,132.39,9.67103048]
[1742746568282,359.0,132.42,132.38,36.61103048]
[1742746568586,9.72438821,132.41,132.39,0.05147236]
[1742746569181,9.67103048,132.4,132.39,0.05147236]
[1742746569799,44.16523048,132.4,132.39,0.05147236]
[1742746573193,17.22523048,132.4,132.39,0.05147236]
[1742746574390,9.67103048,132.4,132.34,26.94]
[1742746574594,9.67103048,132.37,132.34,26.94]
[1742746574785,17.22713048,132.37,132.34,34.4973]
[1742746575485,7.60458731,132.37,132.34,44.22360607]
[1742746575691,7.60458731,132.37,132.34,17.28360607]
[1742746575894,7.60458731,132.37,132.35,7.557]
[1742746576295,0.04848731,132.37,132.36,7.5565]
[1742746576490,0.04848731,132.37,132.36,17.22753048]
[1742746577898,0.04848731,132.37,132.35,44.18783048]
[1742746578701,0.04848731,132.37,132.35,26.96]
[1742746578897,9.71951779,132.37,132.35,26.96]
[1742746579093,0.04848731,132.37,132.35,26.96]
[1742746579290,0.04848731,132.37,132.35,7.5567]
[1742746579899,0.04848731,132.37,132.36,17.22753048]
[1742746580400,368.67103048,132.42,132.36,9.67103048]
[1742746580591,376.22443048,132.42,132.39,7.5544]
[1742746581202,7.5537,132.41,132.38,17.22613048]
[1742746581404,17.22473048,132.41,132.39,0.0544444]
[1742746582100,7.5542,132.4,132.39,0.0544444]
[1742746582299,17.22523048,132.4,132.39,0.0544444]
[1742746583004,7.5542,132.4,132.39,0.0544444]
[1742746584807,22.65505851,132.4,132.39,0.0544444]
[1742746586310,7.5542,132.4,132.39,0.0544444]
[1742746586607,7.5539,132.41,132.39,7.6088444]
[1742746586808,374.15081415,132.42,132.39,7.6088444]
[1742746587004,359.04995564,132.42,132.39,7.6088444]
[1742746587206,366.60345564,132.42,132.39,7.6088444]
[1742746587610,366.60345564,132.42,132.4,7.5541]
[1742746587810,366.60345564,132.42,132.39,0.0544444]
[1742746587811,7.5536,132.41,132.39,0.0544444]
[1742746588204,7.5536,132.41,132.39,7.6089444]
[1742746589008,359.04995564,132.42,132.4,7.5539]
[1742746589208,359.04995564,132.42,132.39,0.0544444]
[1742746589615,0.04995564,132.42,132.39,0.0544444]
[1742746590008,0.04995564,132.42,132.4,26.96]
[1742746591914,7.60325564,132.42,132.4,34.5137]
[1742746592100,0.04995564,132.42,132.4,26.96]
[1742746593315,0.04995564,132.42,132.41,7.5536]
[1742746595216,0.04995564,132.42,132.39,0.0544444]
[1742746596016,7.5542,132.4,132.39,0.0544444]
[1742746596216,0.04995564,132.42,132.39,0.0544444]
[1742746596416,7.5542,132.4,132.39,0.0544444]
[1742746598422,7.5539,132.41,132.39,0.0544444]
[1742746598919,7.5539,132.41,132.39,7.6091444]
[1742746599520,7.60335564,132.42,132.39,7.6091444]
[1742746600011,0.04995564,132.42,132.39,7.6091444]
[1742746600517,7.5539,132.41,132.39,7.6091444]
[1742746602522,7.60325564,132.42,132.4,7.5542]
[1742746602725,0.04995564,132.42,132.39,0.0544444]
[1742746602919,9.66250876,132.41,132.39,0.0544444]
[1742746603220,7.5537,132.41,132.39,7.6087444]
[1742746605125,7.5542,132.4,132.39,7.6087444]
[1742746605426,9.66250876,132.41,132.39,7.6087444]
[1742746605625,17.21630876,132.41,132.39,7.6087444]
[1742746606527,7.5542,132.4,132.39,0.0544444]
[1742746606730,9.66250876,132.41,132.39,0.0544444]
[1742746607029,17.21640876,132.41,132.39,7.6089444]
[1742746607329,9.66250876,132.41,132.39,0.0544444]
[1742746607626,17.21620876,132.41,132.39,7.6086444]
[1742746608219,7.5537,132.41,132.39,7.6086444]
[1742746609521,7.60335564,132.42,132.4,7.5539]
[1742746611128,0.04995564,132.42,132.41,7.5536]
[1742746611725,0.04995564,132.42,132.41,17.21610876]
[1742746611929,368.66250876,132.49,132.41,17.22250876]
[1742746612134,359.0,132.49,132.46,9.66250876]
[1742746612432,359.0,132.49,132.47,7.5502]
[1742746612627,366.5493,132.49,132.47,7.5502]
[1742746613132,366.60475336,132.49,132.47,0.05045146]
[1742746613530,17.21210876,132.48,132.47,0.05045146]
[1742746617329,7.5513,132.45,132.44,26.96]
[1742746617536,9.66250876,132.45,132.42,276.16]
[1742746618232,7.5524,132.44,132.42,276.16]
[1742746618434,9.66250876,132.45,132.42,276.16]
[1742746618629,0.04796215,132.44,132.42,276.21450398]
[1742746619437,7.5525,132.43,132.42,276.21450398]
[1742746623535,7.5544,132.4,132.37,2.024]
[1742746623739,9.66250876,132.41,132.37,9.66250876]
[1742746623942,9.66250876,132.4,132.37,9.66250876]
[1742746624131,9.66250876,132.4,132.36,44.15850876]
[1742746624328,17.21720876,132.4,132.36,44.15850876]
[1742746624533,9.66250876,132.39,132.36,44.15850876]
[1742746624736,0.05144171,132.39,132.37,0.05523715]
[1742746625028,7.60644171,132.39,132.37,0.05523715]
[1742746627243,17.26895047,132.39,132.37,0.05523715]
[1742746627436,17.21780876,132.38,132.37,0.05523715]
[1742746628138,7.5553,132.38,132.37,0.05523715]
[1742746629438,7.60644171,132.39,132.37,9.71774591]
[1742746629844,0.05144171,132.39,132.37,9.71774591]
[1742746632140,0.05144171,132.39,132.38,9.66250876]
[1742746633043,0.05144171,132.39,132.38,17.21780876]
[1742746633341,359.0,132.45,132.38,9.66250876]
[1742746633541,376.21410876,132.45,132.41,17.21560876]
[1742746633946,359.0,132.45,132.42,36.62250876]
[1742746634143,9.66250876,132.47,132.43,9.66250876]
[1742746634446,9.66250876,132.49,132.45,9.66250876]
[1742746634742,0.05610877,132.48,132.47,9.66250876]
[1742746635130,0.05610877,132.48,132.47,17.21230876]
[1742746636938,0.05610877,132.48,132.47,22.622176]
[1742746640049,0.05610877,132.48,132.46,0.05426759]
[1742746640246,0.05610877,132.48,132.46,26.99426759]
[1742746640645,7.5502,132.47,132.46,26.99426759]
[1742746641247,7.60600877,132.48,132.46,26.99426759]
[1742746642654,7.60600877,132.48,132.46,34.54496759]
[1742746642947,0.05610877,132.48,132.46,26.99426759]
[1742746643354,0.05610877,132.48,132.47,22.622576]
[1742746644047,359.0,132.5,132.49,7.549]
[1742746644251,1.9932,132.55,132.49,42.012376]
[1742746644451,15.072376,132.56,132.49,42.012376]
[1742746644652,7.5465,132.54,132.51,7.5476]
[1742746644852,7.5465,132.54,132.52,26.94]
[1742746645254,7.5468,132.53,132.52,26.98893441]
[1742746645845,7.60382459,132.54,132.52,26.98893441]
[1742746646353,0.05742459,132.54,132.52,26.98893441]
[1742746646555,0.05742459,132.54,132.52,34.53603441]
[1742746647355,7.60392459,132.54,132.52,26.98893441]
[1742746647652,0.05742459,132.54,132.52,26.98893441]
[1742746649452,0.05742459,132.54,132.53,7.5468]
[1742746650964,359.0,132.61,132.53,22.612376]
[1742746651265,359.0,132.61,132.55,15.072376]
[1742746651468,359.0,132.61,132.58,7.5439]
[1742746651661,359.0,132.61,132.56,27.0]
[1742746651857,374.072376,132.61,132.56,34.5448]
[1742746652059,15.072376,132.59,132.57,0.0521424]
[1742746652256,7.5439,132.58,132.57,0.0521424]
[1742746652963,7.5439,132.58,132.57,4.24e-05]
[1742746653666,359.0,132.57,132.5,276.18]
[1742746653865,15.072376,132.55,132.5,276.18]
[1742746654060,7.5475,132.52,132.5,276.18]
[1742746654461,7.5475,132.52,132.49,7.5487]
[1742746654658,7.5479,132.51,132.5,27.11747698]
[1742746654857,7.5479,132.51,132.5,0.05747698]
[1742746655264,7.59789144,132.52,132.5,0.05747698]
[1742746655758,0.05029144,132.52,132.5,0.05747698]
[1742746656069,0.05029144,132.52,132.5,7.60597698]
[1742746656469,0.05029144,132.52,132.5,0.05747698]
[1742746656768,7.59809144,132.52,132.5,0.05747698]
[1742746656969,0.05029144,132.52,132.5,0.05747698]
[1742746657271,7.5479,132.51,132.5,0.05747698]
[1742746657461,22.620276,132.51,132.5,0.05747698]
[1742746657662,15.072376,132.51,132.45,7.5511]
[1742746658074,15.072376,132.49,132.44,27.06]
[1742746658370,15.072376,132.49,132.44,34.6117]
[1742746658571,15.072376,132.51,132.44,27.06]
[1742746658762,0.0568068,132.48,132.46,7.5505]
[1742746659774,0.0568068,132.48,132.47,7.5502]
[1742746660372,0.0568068,132.48,132.47,34.6302]
[1742746661177,0.0568068,132.48,132.47,27.08]
[1742746661380,0.0568068,132.48,132.45,27.11457395]
[1742746662078,7.6067068,132.48,132.45,27.11457395]
[1742746662274,0.0568068,132.48,132.45,34.66567395]
[1742746662972,0.0568068,132.48,132.45,0.05457395]
[1742746663978,7.5502,132.47,132.45,0.05457395]
[1742746664178,0.0568068,132.48,132.45,0.05457395]
[1742746665176,0.0568068,132.48,132.47,7.5502]
[1742746665375,0.0568068,132.48,132.47,34.6102]
[1742746666782,0.0568068,132.48,132.47,27.06]
[1742746667286,7.6064068,132.48,132.47,27.06]
[1742746668072,0.0568068,132.48,132.47,27.06]
[1742746670082,0.0568068,132.48,132.47,34.6102]
[1742746670680,0.0568068,132.48,132.47,27.06]
[1742746670982,7.6064068,132.48,132.47,27.06]
[1742746671379,0.0568068,132.48,132.47,27.06]
[1742746672082,0.0568068,132.48,132.46,34.5705]
[1742746672685,7.6065068,132.48,132.46,34.5705]
[1742746673392,0.0568068,132.48,132.46,34.5705]
[1742746673689,0.0568068,132.48,132.46,27.02]
[1742746674186,7.6065068,132.48,132.46,34.5704]
[1742746675788,0.0568068,132.48,132.46,27.02]
[1742746676286,7.6067068,132.48,132.46,34.5704]
[1742746677387,0.0568068,132.48,132.46,34.5704]
[1742746678084,0.0568068,132.48,132.46,27.02]
[1742746678286,0.0568068,132.48,132.47,7.5502]
[1742746680192,7.6066068,132.48,132.46,34.5704]
[1742746680592,0.0568068,132.48,132.46,27.02]
[1742746680792,7.5502,132.47,132.46,27.02]
[1742746683493,7.5502,132.47,132.45,7.60557395]
[1742746683787,7.5502,132.47,132.45,34.54557395]
[1742746685991,7.5508,132.46,132.45,26.99457395]
[1742746686797,7.5508,132.46,132.45,0.05457395]
[1742746701310,0.0568068,132.48,132.45,9.7070241]
[1742746701512,0.0568068,132.48,132.46,9.65245015]
[1742746701709,7.6067068,132.48,132.46,17.20285015]
[1742746703312,7.6067068,132.48,132.46,7.5504]
[1742746703710,7.5503,132.47,132.45,17.2580241]
[1742746706212,7.5503,132.47,132.45,7.60557395]
[1742746708308,7.5503,132.47,132.45,0.05457395]
[1742746708511,7.5508,132.46,132.45,0.05457395]
[1742746711012,7.5505,132.47,132.45,0.05457395]
[1742746711518,7.5505,132.47,132.45,7.60587395]
[1742746712922,7.5508,132.46,132.45,0.05457395]
[1742746715323,7.5505,132.47,132.45,0.05457395]
[1742746715622,7.5505,132.47,132.45,7.60577395]
[1742746716722,7.5508,132.46,132.45,0.05457395]
[1742746717025,9.70925695,132.48,132.45,0.05457395]
[1742746717725,9.65245015,132.47,132.45,0.05457395]
[1742746718428,7.5508,132.46,132.45,0.05457395]
[1742746720325,7.5505,132.47,132.45,0.05457395]
[1742746720626,7.5505,132.47,132.45,7.60567395]
[1742746721125,7.5508,132.46,132.45,0.05457395]
[1742746722222,7.5504,132.47,132.45,7.60587395]
[1742746722620,0.0568068,132.48,132.46,9.65245015]
[1742746722822,0.0568068,132.48,132.47,36.59245015]
[1742746724020,0.0568068,132.48,132.47,44.14265015]
[1742746725026,0.0568068,132.48,132.47,36.59245015]
[1742746727730,7.6064068,132.48,132.47,26.94]
[1742746730429,7.5508,132.46,132.45,9.7070241]
[1742746730631,7.5508,132.46,132.45,36.6470241]
[1742746730931,7.5508,132.46,132.45,9.7070241]
[1742746731130,7.5508,132.46,132.45,0.05457395]
[1742746732631,7.5505,132.47,132.45,0.05457395]
[1742746733035,7.5505,132.47,132.45,7.60577395]
[1742746733236,17.25925695,132.48,132.45,7.60577395]
[1742746733435,0.0568068,132.48,132.47,7.5502]
[1742746734536,0.0568068,132.48,132.46,7.5504]
[1742746735131,0.0568068,132.48,132.45,17.2580241]
[1742746735332,7.5506,132.47,132.45,9.7070241]
[1742746735533,7.5506,132.47,132.45,0.05457395]
[1742746735732,7.5506,132.47,132.45,17.2583241]
[1742746735931,7.6067068,132.48,132.45,17.2583241]
[1742746736239,0.0568068,132.48,132.46,9.65245015]
[1742746737440,0.0568068,132.48,132.47,7.5502]
[1742746738241,0.0568068,132.48,132.47,44.14265015]
[1742746744246,0.0568068,132.48,132.47,36.59245015]
[1742746744453,7.6064068,132.48,132.47,26.94]
[1742746745847,7.5508,132.46,132.45,36.6270241]
[1742746746150,0.0568068,132.48,132.45,36.6270241]
[1742746747440,0.0568068,132.48,132.46,7.5504]
[1742746748251,7.6065068,132.48,132.46,7.5504]
[1742746748452,7.6065068,132.48,132.45,44.1780241]
[1742746749850,7.5502,132.47,132.45,44.1780241]
[1742746750049,7.5502,132.47,132.45,34.52557395]
[1742746751748,7.6067068,132.48,132.46,7.5507]
[1742746752052,0.0568068,132.48,132.45,36.6270241]
[1742746752448,7.5504,132.47,132.45,44.1781241]
[1742746755455,7.5504,132.47,132.45,17.2581241]
[1742746755643,7.5504,132.47,132.45,44.1781241]
[1742746755850,7.6067068,132.48,132.46,7.5508]
[1742746756158,7.6067068,132.48,132.47,9.65245015]
[1742746756159,0.0568068,132.48,132.47,9.65245015]
[1742746756557,366.5476,132.52,132.47,9.65245015]
[1742746756755,366.5476,132.52,132.49,9.65245015]
[1742746756956,366.5476,132.52,132.5,7.5484]
[1742746757455,366.5476,132.52,132.49,9.65245015]
[1742746757953,7.548,132.51,132.49,17.25230244]
[1742746758154,7.548,132.51,132.49,0.05115229]
[1742746758759,7.5485,132.5,132.49,0.05115229]
[1742746762152,17.20065015,132.51,132.49,0.05115229]
[1742746762455,9.65245015,132.51,132.49,0.05115229]
[1742746763164,7.5485,132.5,132.49,0.05115229]
[1742746763460,368.70479799,132.52,132.49,0.05115229]
[1742746763653,7.548,132.51,132.49,0.05115229]
[1742746763858,368.70479799,132.52,132.49,0.05115229]
[1742746764659,7.5479,132.51,132.49,0.05115229]
[1742746764858,368.70479799,132.52,132.49,0.05115229]
[1742746765060,9.65245015,132.5,132.49,0.05115229]
[1742746765761,17.20095015,132.5,132.49,0.05115229]
[1742746767764,7.5508,132.46,132.44,283.5316]
[1742746768869,7.60667887,132.46,132.44,283.58488595]
[1742746769772,7.5513,132.45,132.44,249.11328595]
[1742746778385,17.25932902,132.46,132.44,256.66518595]
[1742746778684,9.70832902,132.46,132.44,256.66518595]
[1742746778885,7.60697887,132.46,132.44,256.66518595]
[1742746779272,2.0516,132.51,132.45,9.65245015]
[1742746779477,9.65245015,132.53,132.49,9.65245015]
[1742746779677,9.65245015,132.53,132.5,7.5482]
[1742746780081,7.547,132.53,132.5,7.5482]
[1742746780279,13.74715015,132.56,132.51,9.65245015]
[1742746780480,13.74715015,132.56,132.52,9.65245015]
[1742746780684,0.05081761,132.55,132.52,36.57245015]
[1742746780885,0.05081761,132.55,132.53,7.59758974]
[1742746781383,0.05081761,132.55,132.53,9.70353989]
[1742746781985,0.05081761,132.55,132.54,17.19865015]
[1742746784388,9.65245015,132.62,132.54,17.19245015]
[1742746784583,9.65245015,132.62,132.58,9.65245015]
[1742746784884,59.03455439,132.63,132.6,7.5425]
[1742746785187,51.49305439,132.63,132.59,36.57245015]
[1742746785383,9.65245015,132.62,132.59,36.57245015]
[1742746785584,17.24360654,132.62,132.6,0.05779347]
[1742746786280,7.5422,132.61,132.6,0.05779347]
[1742746786481,17.19465015,132.61,132.6,0.05779347]
[1742746791391,7.5445,132.57,132.56,249.06]
[1742746791993,17.19665015,132.58,132.56,249.06]
[1742746792189,7.5442,132.58,132.56,256.605]
[1742746792490,7.5442,132.58,132.56,266.31266937]
[1742746792491,0.0553211,132.58,132.56,266.31266937]
[1742746793488,7.5992211,132.58,132.56,249.11521922]
[1742746793990,0.0553211,132.58,132.56,249.11521922]
[1742746794187,9.70777125,132.58,132.56,249.11521922]
[1742746795288,0.0553211,132.58,132.56,249.11521922]
[1742746795488,7.5995211,132.58,132.56,249.11521922]
[1742746795794,0.0553211,132.58,132.56,249.11521922]
[1742746796097,0.0553211,132.58,132.56,256.66001922]
[1742746796594,7.5998211,132.58,132.56,249.11521922]
[1742746798094,7.5445,132.57,132.56,249.11521922]
[1742746799393,7.5445,132.57,132.56,0.05521922]
[1742746800698,7.5995211,132.58,132.56,0.05521922]
[1742746801296,7.5445,132.57,132.56,0.05521922]
[1742746802196,0.0553211,132.58,132.56,0.05521922]
[1742746802396,0.0553211,132.58,132.56,7.59991922]
[1742746802594,7.5993211,132.58,132.56,7.59991922]
[1742746804386,0.0553211,132.58,132.57,34.4445]
[1742746804788,0.0553211,132.58,132.57,44.09695015]
[1742746810400,0.00850365,132.58,132.57,292.99695015]
[1742746810602,0.00850365,132.58,132.57,294.99275015]
[1742746810799,0.00850365,132.58,132.57,296.93755015]
[1742746814498,7.5407,132.64,132.61,7.5417]
[1742746814699,7.5407,132.64,132.61,36.55245015]
[1742746815405,7.5402,132.65,132.62,9.65245015]
[1742746815797,7.5409,132.64,132.62,0.05123119]
[1742746815998,9.65245015,132.63,132.62,0.05123119]
[1742746816513,17.19355015,132.63,132.62,0.05123119]
[1742746816707,7.5411,132.63,132.62,0.05123119]
[1742746816900,17.19355015,132.63,132.62,0.05123119]
[1742746817307,7.5411,132.63,132.62,0.05123119]
[1742746817507,17.19325015,132.64,132.62,0.05123119]
[1742746818305,7.5411,132.63,132.62,0.05123119]
[1742746819709,17.19325015,132.64,132.62,0.05123119]
[1742746819905,7.5408,132.64,132.62,0.05123119]
[1742746820105,9.70587423,132.65,132.62,0.05123119]
[1742746821111,7.5411,132.63,132.62,0.05123119]
[1742746823607,7.5408,132.64,132.62,0.05123119]
[1742746823800,7.5408,132.64,132.62,26.93123119]
[1742746824310,7.5411,132.63,132.62,26.93123119]
[1742746824711,17.19355015,132.63,132.62,26.93123119]
[1742746824907,17.19355015,132.63,132.62,0.05123119]
[1742746827611,13.88207423,132.65,132.62,0.05123119]
[1742746827813,0.05342408,132.65,132.62,9.70368134]
[1742746828019,0.05342408,132.65,132.63,26.88]
[1742746828207,0.05342408,132.65,132.63,34.4208]